{"text_format":"1","workbook":"xlsx","n_sheets":15,"sheets":["concepta Connector 110","concepta Connector 55","Mauernische","concepta","Concepta 25","Concepta 50","Concepta 40","Concepta 30","HAWA-Concepta 25","HAWA-Concepta 30","HAWA-Concepta 40","HAWA-Concepta 50","Bilder","Text","Home"],"not_rendered":{"charts":0,"images":247,"macros":1,"external_links":1,"defined_names":22,"comments":0,"pivot_tables":0},"unopened":[],"bounds":{"document_bytes":16777216,"sheet_cells":100000,"rows_first":2000,"rows_last":500,"rows_between":2000,"halvings":0,"cell_chars":16384,"cell_head_chars":4096},"cells_cut":0,"cells_raw":0,"read":"whole","date_system":"1900"}

{"sheet":"concepta Connector 110","index":0,"n_rows":43,"n_cols":20,"rows_kept":43,"cut":false,"hidden":true,"merged":[[2,2,2,3],[18,1,18,2],[28,13,28,17]]}
["  Berechungstool HAWA-Concepta 25/30/40/50",null,null,null,null,null,null,null,null,null,null,3,30,1,1,1,2,null,{"$f":"+C25","v":648},{"$f":"+C31","v":648}]
[{"$f":"VLOOKUP(\"T_Text18\", Texte,Languaje, FALSE)","v":"Spanplatte"},"1) Grundmasse",null,null,null,null,null,null,null,null,null,null,null,null,null,null,{"$f":"VLOOKUP(\"T_Text25\", Texte,Languaje, FALSE)","v":"\"M\" minimun  = Türdicke"}]
[{"$f":"VLOOKUP(\"T_Text19\", Texte,Languaje, FALSE)","v":"MDF"},"Material","MDF"]
[{"$f":"VLOOKUP(\"T_Text20\", Texte,Languaje, FALSE)","v":"Tischlerplatte"},{"$f":"VLOOKUP(\"T_Text1\", Texte,Languaje, FALSE)","v":"Einbauhöhe (EH)"},1250,"mm",null,null,null,{"$f":"C4*C5*C6*C7/10^9","v":17.106249999999999}]
[{"$f":"VLOOKUP(\"T_Text21\", Texte,Languaje, FALSE)","v":"Fichte / Tanne"},{"$f":"VLOOKUP(\"T_Text2\", Texte,Languaje, FALSE)","v":"Türbreite (TB)"},700,"mm",null,null,null,null,null,null,null,null,null,null,null,null,{"$f":"VLOOKUP(\"T_Text28\", Texte,Languaje, FALSE)","v":"Zurück"}]
[{"$f":"VLOOKUP(\"T_Text22\", Texte,Languaje, FALSE)","v":"Sonstiges (Bitte spezifisches Gewicht eingeben)"},{"$f":"VLOOKUP(\"T_Text3\", Texte,Languaje, FALSE)","v":"Türdicke"},23,"mm",null,null,null,"  ",null,null,null,null,null,null,null,null,{"$f":"VLOOKUP(\"T_Text29\", Texte,Languaje, FALSE)","v":"Drucken"}]
[null,{"$f":"VLOOKUP(\"T_Text4\", Texte,Languaje, FALSE)","v":"Spezifisches Gewicht"},850,"kg/m3",null,null,null,null,null,null,null,null,null,null,null,null,{"$f":"VLOOKUP(\"T_Text30\", Texte,Languaje, FALSE)","v":"Ja"}]
[null,"M ",225,null,null,null,null,null,null,null,null,null,null,null,null,null,{"$f":"VLOOKUP(\"T_Text31\", Texte,Languaje, FALSE)","v":"Nein"}]
[null,{"$f":"VLOOKUP(\"T_Text5\", Texte,Languaje, FALSE)","v":"Tür Gewicht"},{"$f":"C4*C5*C6*C7/10^9","v":17.106249999999999},"kg"]
[null,null," "]
[null,{"$f":"VLOOKUP(\"T_Text45\", Texte,Languaje, FALSE)","v":"Zwischenluft Seite (Z3)"},3,"mm"]
[null,{"$f":"VLOOKUP(\"T_Text46\", Texte,Languaje, FALSE)","v":"Zwischenluft oben (Z1)"},4,"mm",null,null,null,null,null,null,null,null,null,null,null,{"$f":"VLOOKUP(\"T_Text46\", Texte,Languaje, FALSE)","v":"Zwischenluft oben (Z1)"}]
[null,{"$f":"VLOOKUP(\"T_Text47\", Texte,Languaje, FALSE)","v":"Zwischenluft unten (Z2)"},2,"mm",null,null,null,null,null,null,null,null,null,null,null,{"$f":"VLOOKUP(\"T_Text47\", Texte,Languaje, FALSE)","v":"Zwischenluft unten (Z2)"}]
[null,{"$f":"VLOOKUP(\"T_Text48\", Texte,Languaje, FALSE)","v":"Türhöhe (TH)"},{"$f":"+C4-C12-C13","v":1244},"mm",null,null,null,null,null,null,null,null,null,null,null,{"$f":"VLOOKUP(\"T_Text45\", Texte,Languaje, FALSE)","v":"Zwischenluft Seite (Z3)"}]
[null,{"$f":"VLOOKUP(\"T_Text5\", Texte,Languaje, FALSE)","v":"Tür Gewicht"},{"$f":"+C9","v":17.106249999999999},"kg"]
[null,{"$f":"VLOOKUP(\"T_Text72\", Texte,Languaje, FALSE)","v":"TA"},{"$f":"+M1","v":30},"mm"]
[null,null,null,null,null,null," "]
[null,"2) Korpusmasse"]
[null,{"$f":"VLOOKUP(\"T_Text44\", Texte,Languaje, FALSE)","v":"Bitte eine Variante auswählen "}]
[null,{"$f":"VLOOKUP(\"T_Text49\", Texte,Languaje, FALSE)","v":"Fixes \"M\" wählen "},{"$f":"VLOOKUP(\"T_Text53\", Texte,Languaje, FALSE)","v":"minimale Korpustiefe (KT)"}]
[]
[]
[null,"M fix und KT variabel"]
[null,"Türüberstand (M)",125,"mm"]
[null,"Beschlagtiefe (T)",{"$f":"+C5-C24+73","v":648},"mm"]
[null,"Einschubtiefe ( E)",{"$f":"+C25-73","v":575},"mm"]
[null,{"$f":"VLOOKUP(\"T_Text53\", Texte,Languaje, FALSE)","v":"minimale Korpustiefe (KT)"},{"$f":"+C25","v":648},"mm"]
[]
[null,"KT fix und M variabel",null,null,null,null,null,null,null,null,null,null,null,{"$f":"VLOOKUP(\"T_Text67\", Texte,Languaje, FALSE)","v":"Zubehör separat bestellen"}]
[null,{"$f":"VLOOKUP(\"T_Text54\", Texte,Languaje, FALSE)","v":"Korpustiefe (KT)"},null,"mm",null,null,null,null,null,null,null,null,null,{"$f":"VLOOKUP(\"T_Text62\", Texte,Languaje, FALSE)","v":"Connector 110 mm: Nische für Zwei Dreh-Einschiebetüre."}]
[null,{"$f":"VLOOKUP(\"T_Text55\", Texte,Languaje, FALSE)","v":"Beschlagtiefe (T)"},{"$f":"+C5-C33+73","v":648},"mm",null,null,null,null,null,null,null,null,null,{"$f":"VLOOKUP(\"T_Text63\", Texte,Languaje, FALSE)","v":"Leichmetall farblos eloxiert, 1 Stück"}]
[null,{"$f":"VLOOKUP(\"T_Text56\", Texte,Languaje, FALSE)","v":"Einschubtiefe ( E)"},{"$f":"+C31-73","v":575},"mm",null,null,null,null,null,null,null,null,null,{"$f":"VLOOKUP(\"T_Text64\", Texte,Languaje, FALSE)","v":"650 mm, Ident. Nr. 23223"}]
[null,{"$f":"VLOOKUP(\"T_Text57\", Texte,Languaje, FALSE)","v":"Türüberstand (M) "},{"$f":"IF(C42<0,0,IF(C43<=0,0,C42))","v":125},"mm",null,null,null,null,null,null,null,null,null,{"$f":"VLOOKUP(\"T_Text65\", Texte,Languaje, FALSE)","v":"900 mm, Ident. Nr. 23224"}]
[null,null,null,null,null,null,null,null,null,null,null,null,null,{"$f":"VLOOKUP(\"T_Text66\", Texte,Languaje, FALSE)","v":"26 mm, Ident. Nr. 23225"}]
[]
[]
[]
[null,null," "]
[]
[{"$f":"VLOOKUP(\"T_Text75\", Texte,Languaje, FALSE)","v":"T wird zu gross, bitte TH oder TB ändern, bis T:"}]
[{"$f":"VLOOKUP(\"T_Text76\", Texte,Languaje, FALSE)","v":"TH = ( 1250-1850) mm; T <=650 mm"}]
[{"$f":"VLOOKUP(\"T_Text77\", Texte,Languaje, FALSE)","v":"TH = ( 1851-2850) mm; T <=900mm"},null,{"$f":"IF(P1=2,C5+73-C30,IF(P1=1,C24,\"\"))","v":125}]
[{"$f":"VLOOKUP(\"T_Text78\", Texte,Languaje, FALSE)","v":"Gewicht ist zu hoch"},null,{"$f":"IF(P1=2,C5+73-C30,IF(P1=1,C24,\"\"))","v":125}]

{"sheet":"concepta Connector 55","index":1,"n_rows":43,"n_cols":20,"rows_kept":43,"cut":false,"hidden":true,"merged":[[2,2,2,3],[18,1,18,2],[28,13,28,17]]}
["  Berechungstool HAWA-Concepta 25/30/40/50",null,null,null,null,null,null,null,null,null,null,null,null,1,1,0,2,null,{"$f":"+C25","v":650},{"$f":"+C31","v":{"$error":"#VALUE!"}}]
[{"$f":"VLOOKUP(\"T_Text18\", Texte,Languaje, FALSE)","v":"Spanplatte"},"1) Grundmasse",null,null,null,null,null,null,null,null,null,null,null,null,null,null,{"$f":"VLOOKUP(\"T_Text25\", Texte,Languaje, FALSE)","v":"\"M\" minimun  = Türdicke"}]
[{"$f":"VLOOKUP(\"T_Text19\", Texte,Languaje, FALSE)","v":"MDF"},"Material","Spanplatte"]
[{"$f":"VLOOKUP(\"T_Text20\", Texte,Languaje, FALSE)","v":"Tischlerplatte"},{"$f":"VLOOKUP(\"T_Text1\", Texte,Languaje, FALSE)","v":"Einbauhöhe (EH)"},1257,"mm",null,null,null,{"$f":"C4*C5*C6*C7/10^9","v":14.78232},null,null,null,null,null,null,null,null,{"$f":"VLOOKUP(\"T_Text27\", Texte,Languaje, FALSE)","v":"zurücksetzen"}]
[{"$f":"VLOOKUP(\"T_Text21\", Texte,Languaje, FALSE)","v":"Fichte / Tanne"},{"$f":"VLOOKUP(\"T_Text2\", Texte,Languaje, FALSE)","v":"Türbreite (TB)"},700,"mm",null,null,null,null,null,null,null,null,null,null,null,null,{"$f":"VLOOKUP(\"T_Text28\", Texte,Languaje, FALSE)","v":"Zurück"}]
[{"$f":"VLOOKUP(\"T_Text22\", Texte,Languaje, FALSE)","v":"Sonstiges (Bitte spezifisches Gewicht eingeben)"},{"$f":"VLOOKUP(\"T_Text3\", Texte,Languaje, FALSE)","v":"Türdicke"},24,"mm",null,null,null,"  ",null,null,null,null,null,null,null,null,{"$f":"VLOOKUP(\"T_Text29\", Texte,Languaje, FALSE)","v":"Drucken"}]
[null,{"$f":"VLOOKUP(\"T_Text4\", Texte,Languaje, FALSE)","v":"Spezifisches Gewicht"},700,"kg/m3",null,null,null,null,null,null,null,null,null,null,null,null,{"$f":"VLOOKUP(\"T_Text30\", Texte,Languaje, FALSE)","v":"Ja"}]
[null,"M ",225,"mm",null,null,null,null,null,null,null,null,null,null,null,null,{"$f":"VLOOKUP(\"T_Text31\", Texte,Languaje, FALSE)","v":"Nein"}]
[null,{"$f":"VLOOKUP(\"T_Text5\", Texte,Languaje, FALSE)","v":"Tür Gewicht"},{"$f":"C4*C5*C6*C7/10^9","v":14.78232},"kg"]
[null,null," "]
[null,{"$f":"VLOOKUP(\"T_Text45\", Texte,Languaje, FALSE)","v":"Zwischenluft Seite (Z3)"},3,"mm"]
[null,{"$f":"VLOOKUP(\"T_Text46\", Texte,Languaje, FALSE)","v":"Zwischenluft oben (Z1)"},3,"mm",null,null,null,null,null,null,null,null,null,null,null,null,{"$f":"VLOOKUP(\"T_Text46\", Texte,Languaje, FALSE)","v":"Zwischenluft oben (Z1)"}]
[null,{"$f":"VLOOKUP(\"T_Text47\", Texte,Languaje, FALSE)","v":"Zwischenluft unten (Z2)"},3,"mm",null,null,null,null,null,null,null,null,null,null,null,null,{"$f":"VLOOKUP(\"T_Text47\", Texte,Languaje, FALSE)","v":"Zwischenluft unten (Z2)"}]
[null,{"$f":"VLOOKUP(\"T_Text48\", Texte,Languaje, FALSE)","v":"Türhöhe (TH)"},{"$f":"+C4-C12-C13","v":1251},"mm",null,null,null,null,null,null,null,null,null,null,null,null,{"$f":"VLOOKUP(\"T_Text45\", Texte,Languaje, FALSE)","v":"Zwischenluft Seite (Z3)"}]
[null,{"$f":"VLOOKUP(\"T_Text5\", Texte,Languaje, FALSE)","v":"Tür Gewicht"},{"$f":"+C9","v":14.78232},"kg"]
[null,{"$f":"VLOOKUP(\"T_Text72\", Texte,Languaje, FALSE)","v":"TA"},{"$f":"31.5-C11","v":28.5},"mm"]
[null,null,null,null,null,null," "]
[null,"2) Korpusmasse"]
[null,{"$f":"VLOOKUP(\"T_Text44\", Texte,Languaje, FALSE)","v":"Bitte eine Variante auswählen "}]
[null,{"$f":"VLOOKUP(\"T_Text49\", Texte,Languaje, FALSE)","v":"Fixes \"M\" wählen "},{"$f":"VLOOKUP(\"T_Text53\", Texte,Languaje, FALSE)","v":"minimale Korpustiefe (KT)"}]
[]
[]
[null,"M fix und KT variabel"]
[null,"Türüberstand (M)",123,"mm"]
[null,"Beschlagtiefe (T)",{"$f":"+C5-C24+73","v":650},"mm"]
[null,"Einschubtiefe ( E)",{"$f":"+C25-73","v":577},"mm"]
[null,{"$f":"VLOOKUP(\"T_Text53\", Texte,Languaje, FALSE)","v":"minimale Korpustiefe (KT)"},{"$f":"+C25","v":650},"mm"]
[]
[null,"KT fix und M variabel",null,null,null,null,null,null,null,null,null,null,null,{"$f":"VLOOKUP(\"T_Text67\", Texte,Languaje, FALSE)","v":"Zubehör separat bestellen"}]
[null,{"$f":"VLOOKUP(\"T_Text54\", Texte,Languaje, FALSE)","v":"Korpustiefe (KT)"},650,"mm",null,null,null,null,null,null,null,null,null,{"$f":"VLOOKUP(\"T_Text58\", Texte,Languaje, FALSE)","v":"Connector 55 mm: Nische für eine Dreh-Einschiebetüre."}]
[null,{"$f":"VLOOKUP(\"T_Text55\", Texte,Languaje, FALSE)","v":"Beschlagtiefe (T)"},{"$f":"+C5-C33+73","v":{"$error":"#VALUE!"}},"mm",null,null,null,null,null,null,null,null,null,{"$f":"VLOOKUP(\"T_Text59\", Texte,Languaje, FALSE)","v":"Leichmetall farblos eloxiert, 1 Stück"}]
[null,{"$f":"VLOOKUP(\"T_Text56\", Texte,Languaje, FALSE)","v":"Einschubtiefe ( E)"},{"$f":"+C31-73","v":{"$error":"#VALUE!"}},"mm",null,null,null,null,null,null,null,null,null,{"$f":"VLOOKUP(\"T_Text60\", Texte,Languaje, FALSE)","v":"650 mm, Ident. Nr. 23221"}]
[null,{"$f":"VLOOKUP(\"T_Text57\", Texte,Languaje, FALSE)","v":"Türüberstand (M) "},{"$f":"IF(C42<0,0,IF(C43<=0,0,C42))","v":""},"mm",null,null,null,null,null,null,null,null,null,{"$f":"VLOOKUP(\"T_Text61\", Texte,Languaje, FALSE)","v":"900 mm, Ident. Nr. 23222"}]
[]
[]
[]
[]
[null,null," "]
[]
[{"$f":"VLOOKUP(\"T_Text75\", Texte,Languaje, FALSE)","v":"T wird zu gross, bitte TH oder TB ändern, bis T:"}]
[{"$f":"VLOOKUP(\"T_Text76\", Texte,Languaje, FALSE)","v":"TH = ( 1250-1850) mm; T <=650 mm"}]
[{"$f":"VLOOKUP(\"T_Text77\", Texte,Languaje, FALSE)","v":"TH = ( 1851-2850) mm; T <=900mm"},null,{"$f":"IF(P1=2,C5+73-C30,IF(P1=1,C24,\"\"))","v":""}]
[{"$f":"VLOOKUP(\"T_Text78\", Texte,Languaje, FALSE)","v":"Gewicht ist zu hoch"},null,{"$f":"IF(P1=2,C5+73-C30,IF(P1=1,C24,\"\"))","v":""}]

{"sheet":"Mauernische","index":2,"n_rows":43,"n_cols":20,"rows_kept":43,"cut":false,"hidden":true,"merged":[[2,2,2,3],[18,1,18,2]]}
["  Berechungstool HAWA-Concepta 25/30/40/50",null,null,null,null,null,null,null,null,null,null,null,null,1,1,0,2,null,{"$f":"+C25","v":648},{"$f":"+C31","v":{"$error":"#VALUE!"}}]
[{"$f":"VLOOKUP(\"T_Text18\", Texte,Languaje, FALSE)","v":"Spanplatte"},{"$f":"VLOOKUP(\"T_Text42\", Texte,Languaje, FALSE)","v":"1) Grundmasse"},null,null,null,null,null,null,null,null,null,null,null,null,null,null,{"$f":"VLOOKUP(\"T_Text25\", Texte,Languaje, FALSE)","v":"\"M\" minimun  = Türdicke"}]
[{"$f":"VLOOKUP(\"T_Text19\", Texte,Languaje, FALSE)","v":"MDF"},"Material","Spanplatte",null,null,null,null,null,null,null,null,null,null,null,null,null,{"$f":"VLOOKUP(\"T_Text26\", Texte,Languaje, FALSE)","v":"Weiter"}]
[{"$f":"VLOOKUP(\"T_Text20\", Texte,Languaje, FALSE)","v":"Tischlerplatte"},{"$f":"VLOOKUP(\"T_Text1\", Texte,Languaje, FALSE)","v":"Einbauhöhe (EH)"},1250,"mm",null,null,null,{"$f":"C4*C5*C6*C7/10^9","v":14.7}]
[{"$f":"VLOOKUP(\"T_Text21\", Texte,Languaje, FALSE)","v":"Fichte / Tanne"},{"$f":"VLOOKUP(\"T_Text2\", Texte,Languaje, FALSE)","v":"Türbreite (TB)"},700,"mm",null,null,null,null,null,null,null,null,null,null,null,null,{"$f":"VLOOKUP(\"T_Text28\", Texte,Languaje, FALSE)","v":"Zurück"}]
[{"$f":"VLOOKUP(\"T_Text22\", Texte,Languaje, FALSE)","v":"Sonstiges (Bitte spezifisches Gewicht eingeben)"},{"$f":"VLOOKUP(\"T_Text3\", Texte,Languaje, FALSE)","v":"Türdicke"},24,"mm",null,null,null,"  ",null,null,null,null,null,null,null,null,{"$f":"VLOOKUP(\"T_Text29\", Texte,Languaje, FALSE)","v":"Drucken"}]
[null,{"$f":"VLOOKUP(\"T_Text4\", Texte,Languaje, FALSE)","v":"Spezifisches Gewicht"},700,"kg/m3",null,null,null,null,null,null,null,null,null,null,null,null,{"$f":"VLOOKUP(\"T_Text30\", Texte,Languaje, FALSE)","v":"Ja"}]
[null,"M ",225,"mm",null,null,null,null,null,null,null,null,null,null,null,null,{"$f":"VLOOKUP(\"T_Text31\", Texte,Languaje, FALSE)","v":"Nein"}]
[null,{"$f":"VLOOKUP(\"T_Text5\", Texte,Languaje, FALSE)","v":"Tür Gewicht"},{"$f":"C4*C5*C6*C7/10^9","v":14.7},"kg"]
[null,null," "]
[null,{"$f":"VLOOKUP(\"T_Text45\", Texte,Languaje, FALSE)","v":"Zwischenluft Seite (Z3)"},3,"mm"]
[null,{"$f":"VLOOKUP(\"T_Text46\", Texte,Languaje, FALSE)","v":"Zwischenluft oben (Z1)"},6,"mm",null,null,null,null,null,null,null,null,null,null,null,null,{"$f":"VLOOKUP(\"T_Text46\", Texte,Languaje, FALSE)","v":"Zwischenluft oben (Z1)"}]
[null,{"$f":"VLOOKUP(\"T_Text47\", Texte,Languaje, FALSE)","v":"Zwischenluft unten (Z2)"},5,"mm",null,null,null,null,null,null,null,null,null,null,null,null,{"$f":"VLOOKUP(\"T_Text47\", Texte,Languaje, FALSE)","v":"Zwischenluft unten (Z2)"}]
[null,{"$f":"VLOOKUP(\"T_Text48\", Texte,Languaje, FALSE)","v":"Türhöhe (TH)"},{"$f":"+C4-C12-C13","v":1239},"mm",null,null,null,null,null,null,null,null,null,null,null,null,{"$f":"VLOOKUP(\"T_Text45\", Texte,Languaje, FALSE)","v":"Zwischenluft Seite (Z3)"}]
[null,{"$f":"VLOOKUP(\"T_Text5\", Texte,Languaje, FALSE)","v":"Tür Gewicht"},{"$f":"+C9","v":14.7},"kg"]
[null,{"$f":"VLOOKUP(\"T_Text72\", Texte,Languaje, FALSE)","v":"TA"},{"$f":"31.5-C11","v":28.5},"mm"]
[null,null,null,null,null,null," "]
[null,{"$f":"VLOOKUP(\"T_Text43\", Texte,Languaje, FALSE)","v":"2) Korpusmasse"}]
[null,{"$f":"VLOOKUP(\"T_Text44\", Texte,Languaje, FALSE)","v":"Bitte eine Variante auswählen "}]
[null,{"$f":"VLOOKUP(\"T_Text49\", Texte,Languaje, FALSE)","v":"Fixes \"M\" wählen "},{"$f":"VLOOKUP(\"T_Text53\", Texte,Languaje, FALSE)","v":"minimale Korpustiefe (KT)"}]
[]
[]
[null,"M fix und KT variabel"]
[null,"Türüberstand (M)",125,"mm"]
[null,"Beschlagtiefe (T)",{"$f":"+C5-C24+73","v":648},"mm"]
[null,"Einschubtiefe ( E)",{"$f":"+C25-73","v":575},"mm"]
[null,{"$f":"VLOOKUP(\"T_Text53\", Texte,Languaje, FALSE)","v":"minimale Korpustiefe (KT)"},{"$f":"+C25","v":648},"mm"]
[]
[null,"KT fix und M variabel"]
[null,{"$f":"VLOOKUP(\"T_Text54\", Texte,Languaje, FALSE)","v":"Korpustiefe (KT)"},null,"mm"]
[null,{"$f":"VLOOKUP(\"T_Text55\", Texte,Languaje, FALSE)","v":"Beschlagtiefe (T)"},{"$f":"+C5-C33+73","v":{"$error":"#VALUE!"}},"mm"]
[null,{"$f":"VLOOKUP(\"T_Text56\", Texte,Languaje, FALSE)","v":"Einschubtiefe ( E)"},{"$f":"+C31-73","v":{"$error":"#VALUE!"}},"mm"]
[null,{"$f":"VLOOKUP(\"T_Text57\", Texte,Languaje, FALSE)","v":"Türüberstand (M) "},{"$f":"IF(C42<0,0,IF(C43<=0,0,C42))","v":""},"mm"]
[]
[]
[]
[]
[]
[]
[{"$f":"VLOOKUP(\"T_Text75\", Texte,Languaje, FALSE)","v":"T wird zu gross, bitte TH oder TB ändern, bis T:"}]
[{"$f":"VLOOKUP(\"T_Text76\", Texte,Languaje, FALSE)","v":"TH = ( 1250-1850) mm; T <=650 mm"}]
[{"$f":"VLOOKUP(\"T_Text77\", Texte,Languaje, FALSE)","v":"TH = ( 1851-2850) mm; T <=900mm"},null,{"$f":"IF(P1=2,C5+73-C30,IF(P1=1,C24,\"\"))","v":""}]
[{"$f":"VLOOKUP(\"T_Text78\", Texte,Languaje, FALSE)","v":"Gewicht ist zu hoch"},null,{"$f":"IF(P1=2,C5+73-C30,IF(P1=1,C24,\"\"))","v":""}]

{"sheet":"concepta","index":3,"n_rows":52,"n_cols":20,"rows_kept":52,"cut":false,"hidden":true,"merged":[[2,2,2,3],[18,1,18,2],[19,2,19,4]]}
["  Berechungstool HAWA-Concepta 25/30/40/50",null,null,null,null,null,null,null,null,null,null,null,null,1,2,0,2,1,{"$f":"+C25","v":650},{"$f":"+C31","v":{"$error":"#VALUE!"}}]
[{"$f":"VLOOKUP(\"T_Text18\", Texte,Languaje, FALSE)","v":"Spanplatte"},{"$f":"VLOOKUP(\"T_Text42\", Texte,Languaje, FALSE)","v":"1) Grundmasse"},null,null,null,null,null,null,null,null,null,null,null,null,null,null,{"$f":"VLOOKUP(\"T_Text25\", Texte,Languaje, FALSE)","v":"\"M\" minimun  = Türdicke"}]
[{"$f":"VLOOKUP(\"T_Text19\", Texte,Languaje, FALSE)","v":"MDF"},"Material","Spanplatte",null,null,null,null,null,null,null,null,null,null,null,null,null,{"$f":"VLOOKUP(\"T_Text26\", Texte,Languaje, FALSE)","v":"Weiter"}]
[{"$f":"VLOOKUP(\"T_Text20\", Texte,Languaje, FALSE)","v":"Tischlerplatte"},{"$f":"VLOOKUP(\"T_Text1\", Texte,Languaje, FALSE)","v":"Einbauhöhe (EH)"},1250,"mm",null,null,null,{"$f":"C4*C5*C6*C7/10^9","v":14.7}]
[{"$f":"VLOOKUP(\"T_Text21\", Texte,Languaje, FALSE)","v":"Fichte / Tanne"},{"$f":"VLOOKUP(\"T_Text2\", Texte,Languaje, FALSE)","v":"Türbreite (TB)"},700,"mm",null,null,null,null,null,null,null,null,null,null,null,null,{"$f":"VLOOKUP(\"T_Text28\", Texte,Languaje, FALSE)","v":"Zurück"}]
[{"$f":"VLOOKUP(\"T_Text22\", Texte,Languaje, FALSE)","v":"Sonstiges (Bitte spezifisches Gewicht eingeben)"},{"$f":"VLOOKUP(\"T_Text3\", Texte,Languaje, FALSE)","v":"Türdicke"},24,"mm",null,null,null,"  ",null,null,null,null,null,null,null,null,{"$f":"VLOOKUP(\"T_Text29\", Texte,Languaje, FALSE)","v":"Drucken"}]
[null,{"$f":"VLOOKUP(\"T_Text4\", Texte,Languaje, FALSE)","v":"Spezifisches Gewicht"},700,"kg/m3",null,null,null,null,null,null,null,null,null,null,null,null,{"$f":"VLOOKUP(\"T_Text30\", Texte,Languaje, FALSE)","v":"Ja"}]
[null,"M ",225,"mm",null,null,null,null,null,null,null,null,null,null,null,null,{"$f":"VLOOKUP(\"T_Text31\", Texte,Languaje, FALSE)","v":"Nein"}]
[null,{"$f":"VLOOKUP(\"T_Text5\", Texte,Languaje, FALSE)","v":"Tür Gewicht"},{"$f":"C4*C5*C6*C7/10^9","v":14.7},"kg"]
[null,null," "]
[null,{"$f":"VLOOKUP(\"T_Text45\", Texte,Languaje, FALSE)","v":"Zwischenluft Seite (Z3)"},3,"mm"]
[null,{"$f":"VLOOKUP(\"T_Text46\", Texte,Languaje, FALSE)","v":"Zwischenluft oben (Z1)"},3,"mm",null,null,null,null,null,null,null,null,null,null,null,null,{"$f":"VLOOKUP(\"T_Text46\", Texte,Languaje, FALSE)","v":"Zwischenluft oben (Z1)"}]
[null,{"$f":"VLOOKUP(\"T_Text47\", Texte,Languaje, FALSE)","v":"Zwischenluft unten (Z2)"},3,"mm",null,null,null,null,null,null,null,null,null,null,null,null,{"$f":"VLOOKUP(\"T_Text47\", Texte,Languaje, FALSE)","v":"Zwischenluft unten (Z2)"}]
[null,{"$f":"VLOOKUP(\"T_Text48\", Texte,Languaje, FALSE)","v":"Türhöhe (TH)"},{"$f":"+C4-C12-C13","v":1244},"mm",null,null,null,null,null,null,null,null,null,null,null,null,{"$f":"VLOOKUP(\"T_Text45\", Texte,Languaje, FALSE)","v":"Zwischenluft Seite (Z3)"}]
[null,{"$f":"VLOOKUP(\"T_Text5\", Texte,Languaje, FALSE)","v":"Tür Gewicht"},{"$f":"+C9","v":14.7},"kg"]
[null,{"$f":"VLOOKUP(\"T_Text72\", Texte,Languaje, FALSE)","v":"TA"},{"$f":"31.5-C11","v":28.5},"mm"]
[null,null,null,null,null,null," "]
[null,{"$f":"VLOOKUP(\"T_Text43\", Texte,Languaje, FALSE)","v":"2) Korpusmasse"}]
[null,{"$f":"VLOOKUP(\"T_Text44\", Texte,Languaje, FALSE)","v":"Bitte eine Variante auswählen "}]
[null,{"$f":"VLOOKUP(\"T_Text49\", Texte,Languaje, FALSE)","v":"Fixes \"M\" wählen "},{"$f":"VLOOKUP(\"T_Text53\", Texte,Languaje, FALSE)","v":"minimale Korpustiefe (KT)"}]
[]
[]
[null,{"$f":"VLOOKUP(\"T_Text49\", Texte,Languaje, FALSE)","v":"Fixes \"M\" wählen "}]
[null,{"$f":"VLOOKUP(\"T_Text50\", Texte,Languaje, FALSE)","v":"Türüberstand (M)"},123,"mm"]
[null,{"$f":"VLOOKUP(\"T_Text51\", Texte,Languaje, FALSE)","v":"Beschlagtiefe (T)"},{"$f":"+C5-C24+73","v":650},"mm"]
[null,{"$f":"VLOOKUP(\"T_Text52\", Texte,Languaje, FALSE)","v":"Einschubtiefe ( E)"},{"$f":"+C25-73","v":577},"mm"]
[null,{"$f":"VLOOKUP(\"T_Text53\", Texte,Languaje, FALSE)","v":"minimale Korpustiefe (KT)"},"650","mm"]
[]
[null,{"$f":"VLOOKUP(\"T_Text53\", Texte,Languaje, FALSE)","v":"minimale Korpustiefe (KT)"}]
[null,{"$f":"VLOOKUP(\"T_Text54\", Texte,Languaje, FALSE)","v":"Korpustiefe (KT)"},"650","mm"]
[null,{"$f":"VLOOKUP(\"T_Text55\", Texte,Languaje, FALSE)","v":"Beschlagtiefe (T)"},{"$f":"+C5-C33+73","v":{"$error":"#VALUE!"}},"mm"]
[null,{"$f":"VLOOKUP(\"T_Text56\", Texte,Languaje, FALSE)","v":"Einschubtiefe ( E)"},{"$f":"+C31-73","v":{"$error":"#VALUE!"}},"mm"]
[null,{"$f":"VLOOKUP(\"T_Text57\", Texte,Languaje, FALSE)","v":"Türüberstand (M) "},{"$f":"IF(C42<0,0,IF(C43<=0,0,C42))","v":""},"mm"]
[]
[]
[]
[]
[]
[]
[{"$f":"VLOOKUP(\"T_Text75\", Texte,Languaje, FALSE)","v":"T wird zu gross, bitte TH oder TB ändern, bis T:"}]
[{"$f":"VLOOKUP(\"T_Text76\", Texte,Languaje, FALSE)","v":"TH = ( 1250-1850) mm; T <=650 mm"}]
[{"$f":"VLOOKUP(\"T_Text77\", Texte,Languaje, FALSE)","v":"TH = ( 1851-2850) mm; T <=900mm"},null,{"$f":"IF(P1=2,C5+73-C30,IF(P1=1,C24,\"\"))","v":""},"^'=WENN(P1=2;C5+73-C30;WENN(P1=1;C24;\"\"))","^'=WENN(P1=2;C5+73-C30;WENN(P1=1;C24;\"\"))"]
[{"$f":"VLOOKUP(\"T_Text78\", Texte,Languaje, FALSE)","v":"Gewicht ist zu hoch"},null,{"$f":"IF(P1=2,C5+73-C30,IF(P1=1,C24,\"\"))","v":""},{"$f":"IF(C5<=900,C31-C5,IF(C43<=900,C31-C5,D44))","v":{"$error":"#VALUE!"}},{"$f":"IF(P1=2,C5+73-C33,IF(C31>650,\"650\"))","v":{"$error":"#VALUE!"}}]
[".",null,null,{"$f":"IF(C5<=900,C31-C5,\"\"\"\")","v":{"$error":"#VALUE!"}},{"$f":"IF(P1=2,MIN(650,C5+73-C33),\"\")","v":""}]
[null,null,null,null,"WENN(E1>650;\"650\";WENN(D1=2;C1+73-C2))"]
[null,null,null,null,"WENN(C31>650;\"650\";WENN(C4<1850;C4+73-C33)) & WENN(C31>900;\"900\";WENN(C4<1851;C1+73-C2)))"]
[null,null,null,null,{"$f":"IF(C31>650,\"650\",IF(C4<1850,C4+73-C33))","v":{"$error":"#VALUE!"}}]
[null,null,null,null,"=WENN(E1>650;\"650\";WENN(D1=2;C1+73-C2))"]
[null,null,null,null," =(WENN(C31>900;\"900\";WENN(C4<1851;C1+73-C2)))"]
[null,null,null,null,"=WENN(E1>650;\"650\";WENN(D1=2;C1+73-C2))"]
[null,null,null,null,"=WENN(UND(F4>=1250;F4<=1850);MIN(F5-F6+73;650);WENN(UND(F4>=1851;F4<=2850);MIN(F5-F6+73;900);\"\"))"]
[null,null,null,null,{"$f":"IF(AND(C4>=1250,C4<=1850),MIN(C5-C33+73,650),IF(AND(C4>=1851,C4<=2850),MIN(C5-C33+73,900),\"\"))","v":{"$error":"#VALUE!"}}]

{"sheet":"Concepta 25","index":4,"n_rows":21,"n_cols":17,"rows_kept":21,"cut":false,"hidden":true,"merged":[[12,1,12,2]]}
[null,null,null,null,null,null,null,null,null,null,null,null,null,1,1,2,{"$f":"+Languaje","v":2}]
[null,null,null,null,null,null,null,null,null,null,null,null,null,null,null,null,{"$f":"VLOOKUP(\"T_Text30\", Texte,Languaje, FALSE)","v":"Ja"}]
[null,{"$f":"VLOOKUP(\"T_Text41\", Texte,Languaje, FALSE)","v":"Berechungstool HAWA-Concepta 25/30/40/50"}]
[]
[]
[null,"HAWA-Concetpa 25"]
[null,"Material",{"$f":"+concepta!C7","v":700},null,null,null,1250]
[null,{"$f":"VLOOKUP(\"T_Text37\", Texte,Languaje, FALSE)","v":"Ident. Nr"},{"$f":"VLOOKUP(\"T_Text39\", Texte,Languaje, FALSE)","v":"Artikel"},"mm",{"$f":"VLOOKUP(\"T_Text38\", Texte,Languaje, FALSE)","v":"Stk."},null,null,"mm",null,null,{"$f":"VLOOKUP(\"T_Text1\", Texte,Languaje, FALSE)","v":"Einbauhöhe (EH)"},{"$f":"+G7","v":1250},"mm"]
[null,24731,{"$f":"VLOOKUP(\"T_Text33\", Texte,Languaje, FALSE)","v":"HAWA-Concepta 25, 1250-1850 mm, Garnitur für 1 Holztüre"},"1250 - 1850",1,null,"EH-52",{"$f":"+G7-52","v":1198},null,null,{"$f":"VLOOKUP(\"T_Text2\", Texte,Languaje, FALSE)","v":"Türbreite (TB)"},{"$f":"+I14","v":700},"mm"]
[null,null,null,null,null,null,"EH/2+Q3",{"$f":"+((G7/2)+H17)","v":555},null,24,{"$f":"VLOOKUP(\"T_Text48\", Texte,Languaje, FALSE)","v":"Türhöhe (TH)"},{"$f":"+I17","v":1244},"mm"]
[null,{"$f":"VLOOKUP(\"T_Text32\", Texte,Languaje, FALSE)","v":"! ACHTUNG ! Die Verbindungsprofile und Ergänzungsteile müssen einzeln bestellt werden"},null,null,null,null,"EH/2+Q  ",{"$f":"+((G7/2)+370)","v":995},null,null,{"$f":"VLOOKUP(\"T_Text3\", Texte,Languaje, FALSE)","v":"Türdicke"},24,"mm"]
[null,null,null,null,null,700,"T-7",{"$f":"+I12-7","v":643},650,{"$f":"+concepta!C31-7","v":{"$error":"#VALUE!"}},{"$f":"VLOOKUP(\"T_Text5\", Texte,Languaje, FALSE)","v":"Tür Gewicht"},14.7,"kg"]
[null,null,null,null,null,"123","T-40",{"$f":"+I12-40","v":610},123,{"$f":"+concepta!C31-40","v":{"$error":"#VALUE!"}},null,28.5]
[null,null,null,null,null,null,"Q",370,700,"TB"]
[null,null,null,null,null,null,"Q2",555,577,"E"]
[null,null,null,null,null,null,"P",35,650,"KT"]
[null,null,null,null,null,null,"Q3",-70,1244]
[]
[]
[null,null,null,null,null,null,"S+ P",{"$f":"+H16+L11","v":59},{"$f":"+(I17-200)/4","v":261}]
[null,null,null,null,null,null,"TA",{"$f":"+L13","v":28.5},0]

{"sheet":"Concepta 50","index":5,"n_rows":30,"n_cols":17,"rows_kept":30,"cut":false,"hidden":true,"merged":[[12,1,12,2]]}
[null,null,null,null,null,null,null,null,null,null,null,null,null,1,1,2]
[null,null,null,null,null,null,null,null,null,null,null,null,null,null,null,null,{"$f":"VLOOKUP(\"T_Text30\", Texte,Languaje, FALSE)","v":"Ja"}]
[null,{"$f":"VLOOKUP(\"T_Text41\", Texte,Languaje, FALSE)","v":"Berechungstool HAWA-Concepta 25/30/40/50"}]
[]
[]
[null,"HAWA-Concetpa 50"]
[null,"Material",{"$f":"+concepta!C7","v":700},null,null,null,1250,1250,null,null,null,null,null,null,null,null,{"$f":"VLOOKUP(\"T_Text24\", Texte,Languaje, FALSE)","v":"HAWA-Concepta 30 mit Führungsrolle oder HAWA-Concepta 40 mit Laufwerk"}]
[null,{"$f":"VLOOKUP(\"T_Text37\", Texte,Languaje, FALSE)","v":"Ident. Nr"},{"$f":"VLOOKUP(\"T_Text39\", Texte,Languaje, FALSE)","v":"Artikel"},"mm",{"$f":"VLOOKUP(\"T_Text38\", Texte,Languaje, FALSE)","v":"Stk."},null,null,"mm",1,2,{"$f":"VLOOKUP(\"T_Text1\", Texte,Languaje, FALSE)","v":"Einbauhöhe (EH)"},{"$f":"+G7","v":1250},"mm"]
[null,24734,{"$f":"VLOOKUP(\"T_Text36\", Texte,Languaje, FALSE)","v":"HAWA-Concepta 50, 2301-2850 mm, Garnitur für 1 Holztüre"},"2301 - 2850",1,null,"EH-105",{"$f":"G7-105","v":1145},null,null,{"$f":"VLOOKUP(\"T_Text2\", Texte,Languaje, FALSE)","v":"Türbreite (TB)"},{"$f":"+I14","v":700},"mm"]
[null,null,45,null,null,null,"EH/2+90",{"$f":"+((G7/2)+90)","v":715},"S",30,{"$f":"VLOOKUP(\"T_Text48\", Texte,Languaje, FALSE)","v":"Türhöhe (TH)"},{"$f":"+I17","v":1244},"mm"]
[null,{"$f":"VLOOKUP(\"T_Text32\", Texte,Languaje, FALSE)","v":"! ACHTUNG ! Die Verbindungsprofile und Ergänzungsteile müssen einzeln bestellt werden"},null,null,null,null,"EH/2+620",{"$f":"+((G7/2)+620)","v":1245},"P",35,{"$f":"VLOOKUP(\"T_Text3\", Texte,Languaje, FALSE)","v":"Türdicke"},24,"mm"]
[null,null,null,null,null,null,"T-7",{"$f":"+I12-7","v":643},650,{"$f":"+concepta!C31-7","v":{"$error":"#VALUE!"}},{"$f":"VLOOKUP(\"T_Text5\", Texte,Languaje, FALSE)","v":"Tür Gewicht"},14.7,"kg"]
[null,null,null,null,null,null,"T-40",{"$f":"+I12-40","v":610},123,{"$f":"+concepta!C31-40","v":{"$error":"#VALUE!"}},null,28.5]
[null,null,null,null,null,null,null,null,700]
[null,null,null,null,null,null,null,null,577]
[null,null,null,null,null,null,"P",35,650,35]
[null,null,null,null,null,null,"S+P",{"$f":"+L11+H16","v":59},1244,{"$f":"+G21-827","v":{"$error":"#VALUE!"}},{"$f":"+G17+J17","v":{"$error":"#VALUE!"}}]
[]
[]
[null,null,null,null,null,null,"TA",{"$f":"+L13","v":28.5},{"$f":"+(I17-200)/4","v":261}]
[null,null,null,null,null,null,"Scharnier","-",0]
[]
[]
[]
[null,null,null,null,null,null,0]
[]
[null,null,"650"]
[]
[]
[null,null,"650"]

{"sheet":"Concepta 40","index":6,"n_rows":30,"n_cols":17,"rows_kept":30,"cut":false,"hidden":true,"merged":[[12,1,12,2]]}
[null,null,null,null,null,null,null,null,null,null,null,null,null,1,1,2]
[null,null,null,null,null,null,null,null,null,null,null,null,null,null,null,null,{"$f":"VLOOKUP(\"T_Text30\", Texte,Languaje, FALSE)","v":"Ja"}]
[null,{"$f":"VLOOKUP(\"T_Text41\", Texte,Languaje, FALSE)","v":"Berechungstool HAWA-Concepta 25/30/40/50"}]
[]
[]
[null,"HAWA-Concetpa 40"]
[null,"Material",{"$f":"+concepta!C7","v":700},null,null,null,1250,{"$f":"+G7","v":1250},null,null,null,null,null,null,null,null,{"$f":"VLOOKUP(\"T_Text24\", Texte,Languaje, FALSE)","v":"HAWA-Concepta 30 mit Führungsrolle oder HAWA-Concepta 40 mit Laufwerk"}]
[null,{"$f":"VLOOKUP(\"T_Text37\", Texte,Languaje, FALSE)","v":"Ident. Nr"},{"$f":"VLOOKUP(\"T_Text39\", Texte,Languaje, FALSE)","v":"Artikel"},"mm",{"$f":"VLOOKUP(\"T_Text38\", Texte,Languaje, FALSE)","v":"Stk."},null,null,"mm",1,2,{"$f":"VLOOKUP(\"T_Text1\", Texte,Languaje, FALSE)","v":"Einbauhöhe (EH)"},{"$f":"+G7","v":1250},"mm"]
[null,24733,{"$f":"VLOOKUP(\"T_Text35\", Texte,Languaje, FALSE)","v":"HAWA-Concepta 40, 1851-2500 mm, Garnitur für 1 Holztüre"},"1851 - 2500",1,null,"EH-105",{"$f":"G7-105","v":1145},null,null,{"$f":"VLOOKUP(\"T_Text2\", Texte,Languaje, FALSE)","v":"Türbreite (TB)"},{"$f":"+I14","v":700},"mm"]
[null,null,45,null,null,null,"EH/2+90",{"$f":"+(G7/2)+90","v":715},null,30,{"$f":"VLOOKUP(\"T_Text48\", Texte,Languaje, FALSE)","v":"Türhöhe (TH)"},{"$f":"+I17","v":1244},"mm",{"$f":"+(L10/2)-483","v":139}]
[null,{"$f":"VLOOKUP(\"T_Text32\", Texte,Languaje, FALSE)","v":"! ACHTUNG ! Die Verbindungsprofile und Ergänzungsteile müssen einzeln bestellt werden"},null,null,null,null,"EH/2+620",{"$f":"+((G7/2)+620)","v":1245},null,null,{"$f":"VLOOKUP(\"T_Text3\", Texte,Languaje, FALSE)","v":"Türdicke"},24,"mm"]
[null,null,null,null,null,null,"T-7",{"$f":"+I12-7","v":643},650,{"$f":"+concepta!C31-7","v":{"$error":"#VALUE!"}},{"$f":"VLOOKUP(\"T_Text5\", Texte,Languaje, FALSE)","v":"Tür Gewicht"},14.7,"kg"]
[null,null,null,null,null,null,"T-40",{"$f":"+I12-40","v":610},123,{"$f":"+concepta!C31-40","v":{"$error":"#VALUE!"}},null,28.5]
[null,null,null,null,null,{"$f":"(L10/2)-483","v":139},"Q",{"$f":"+N10","v":139},700]
[null,null,null,null,null,null,null,null,577]
[null,null,null,null,null,null,"P",35,650,35]
[null,null,null,null,null,null,"S+ P",{"$f":"+H16+L11","v":59},1244,{"$f":"+G21-827","v":-827},{"$f":"+#REF!+J17","v":{"$error":"#REF!"}}]
[]
[]
[null,null,null,null,null,null,"TA",{"$f":"+L13","v":28.5},{"$f":"+(I17-200)/4","v":261}]
[null,null,null,null,null,null,null,"-",0]
[]
[]
[]
[null,null,null,null,null,null,0]
[]
[null,null,"650"]
[]
[]
[null,null,"650"]

{"sheet":"Concepta 30","index":7,"n_rows":30,"n_cols":17,"rows_kept":30,"cut":false,"hidden":true,"merged":[[12,1,12,2]]}
[null,null,null,null,null,null,null,null,null,null,null,null,null,1,1,2]
[null,null,null,null,null,null,null,null,null,null,null,null,null,null,null,null,{"$f":"VLOOKUP(\"T_Text30\", Texte,Languaje, FALSE)","v":"Ja"}]
[null,{"$f":"VLOOKUP(\"T_Text41\", Texte,Languaje, FALSE)","v":"Berechungstool HAWA-Concepta 25/30/40/50"}]
[]
[]
[null,"HAWA-Concetpa 30"]
[null,"Material",{"$f":"+concepta!C7","v":700},null,null,null,1250,1250,null,null,null,null,null,null,null,null,{"$f":"VLOOKUP(\"T_Text24\", Texte,Languaje, FALSE)","v":"HAWA-Concepta 30 mit Führungsrolle oder HAWA-Concepta 40 mit Laufwerk"}]
[null,{"$f":"VLOOKUP(\"T_Text37\", Texte,Languaje, FALSE)","v":"Ident. Nr"},{"$f":"VLOOKUP(\"T_Text39\", Texte,Languaje, FALSE)","v":"Artikel"},"mm",{"$f":"VLOOKUP(\"T_Text38\", Texte,Languaje, FALSE)","v":"Stk."},null,null,"mm",1,2,{"$f":"VLOOKUP(\"T_Text1\", Texte,Languaje, FALSE)","v":"Einbauhöhe (EH)"},{"$f":"+G7","v":1250},"mm",null,null,null,{"$f":"VLOOKUP(\"T_Text69\", Texte,Languaje, FALSE)","v":"Für Ihre angegebenen Werte sind zwei Gewichtsklassen möglich. Bitte wählen Sie die gewünschte Gewichtsklasse aus"}]
[null,24732,{"$f":"VLOOKUP(\"T_Text34\", Texte,Languaje, FALSE)","v":"HAWA-Concepta 30, 1851-2300 mm, Garnitur für 1 Holztüre"},"1851 - 2300",1,null,"EH-52",{"$f":"G7-52","v":1198},null,null,{"$f":"VLOOKUP(\"T_Text2\", Texte,Languaje, FALSE)","v":"Türbreite (TB)"},{"$f":"+I14","v":700},"mm",null,null,null,{"$f":"VLOOKUP(\"T_Text70\", Texte,Languaje, FALSE)","v":"Mit zwei Führungsrollen für leichte Türen"}]
[null,null,null,null,null,null,"EH/2+Q3",{"$f":"+((G7/2)+90)","v":715},null,30,{"$f":"VLOOKUP(\"T_Text48\", Texte,Languaje, FALSE)","v":"Türhöhe (TH)"},{"$f":"+I17","v":1244},"mm",null,null,null,{"$f":"VLOOKUP(\"T_Text71\", Texte,Languaje, FALSE)","v":"Mit einer Laufrolle oben und einer Führungsrolle unten für eine erhöhte Laufruhe"}]
[null,{"$f":"VLOOKUP(\"T_Text32\", Texte,Languaje, FALSE)","v":"! ACHTUNG ! Die Verbindungsprofile und Ergänzungsteile müssen einzeln bestellt werden"},null,null,null,null,"EH/2+Q",{"$f":"+(G7/2)+660","v":1285},null,null,{"$f":"VLOOKUP(\"T_Text3\", Texte,Languaje, FALSE)","v":"Türdicke"},24,"mm",null,null,null," "]
[null,null,null,null,null,null,"T-7",{"$f":"+I12-7","v":643},650,"T",{"$f":"VLOOKUP(\"T_Text5\", Texte,Languaje, FALSE)","v":"Tür Gewicht"},14.7,"kg"]
[null,null,null,null,null,null,"T-40",{"$f":"+I12-40","v":610},123,"M",null,28.5]
[null,null,null,null,null,null,"Q",660,700,"TB"]
[null,null,null,null,null,null,"Q2",1155,577,"E"]
[null,null,null,null,null,null,"P",35,650,"KT"]
[null,null,null,null,null,null,"S + P",{"$f":"+H16+L11","v":59},1244,"TH",{"$f":"+#REF!+J17","v":{"$error":"#REF!"}}]
[]
[]
[null,null,null,null,null,null,"TA",{"$f":"+L13","v":28.5},{"$f":"+(I17-200)/4","v":261}]
[null,null,null,null,null,null,"Q3",90,0]
[]
[]
[]
[null,null,null,null,null,null,0]
[]
[null,null,"650"]
[]
[]
[null,null,"650"]

{"sheet":"HAWA-Concepta 25","index":8,"n_rows":14,"n_cols":11,"rows_kept":14,"cut":false,"hidden":true,"merged":[]}
["TH/TB",300,350,400,450,500,550,600,650,700,750]
[1250,25,25,25,25,23,21,19,17,16,15]
[1300,25,25,25,25,24,22,20,18,17,16]
[1350,25,25,25,25,25,23,21,19,18,17]
[1400,25,25,25,25,25,24,22,20,19,17]
[1450,25,25,25,25,25,25,23,21,19,18]
[1500,25,25,25,25,25,25,24,22,20,19]
[1550,25,25,25,25,25,25,24,23,21,20]
[1600,25,25,25,25,25,25,25,23,22,20]
[1650,25,25,25,25,25,25,25,24,23,21]
[1700,25,25,25,25,25,25,25,25,23,22]
[1750,25,25,25,25,25,25,25,25,24,23]
[1800,25,25,25,25,25,25,25,25,25,23]
[1850,25,25,25,25,25,25,25,25,25,24]

{"sheet":"HAWA-Concepta 30","index":9,"n_rows":11,"n_cols":14,"rows_kept":11,"cut":false,"hidden":true,"merged":[]}
["TH/TB",300,350,400,450,500,550,600,650,700,750,800,850,900]
[1851,30,30,30,30,30,30,30,28,26,24,23,21,20]
[1900,30,30,30,30,30,30,30,29,27,25,23,22,21]
[1950,30,30,30,30,30,30,30,29,27,26,24,23,21]
[2000,30,30,30,30,30,30,30,30,29,26,25,23,22]
[2050,30,30,30,30,30,30,30,30,29,27,25,24,23]
[2100,30,30,30,30,30,30,30,30,30,28,26,25,23]
[2150,30,30,30,30,30,30,30,30,30,29,27,25,24]
[2200,30,30,30,30,30,30,30,30,30,29,28,26,24]
[2250,30,30,30,30,30,30,30,30,30,30,29,27,25]
[2300,30,30,30,30,30,30,30,30,30,30,29,27,26]

{"sheet":"HAWA-Concepta 40","index":10,"n_rows":15,"n_cols":14,"rows_kept":15,"cut":false,"hidden":true,"merged":[]}
["TH/TB",300,350,400,450,500,550,600,650,700,750,800,850,900]
[1851,40,40,40,40,40,40,39,37,35,33,31,29,27]
[1900,40,40,40,40,40,40,40,38,36,34,32,30,28]
[1950,40,40,40,40,40,40,40,39,37,35,33,31,29]
[2000,40,40,40,40,40,40,40,40,38,36,34,32,30]
[2050,40,40,40,40,40,40,40,40,39,37,35,33,31]
[2100,40,40,40,40,40,40,40,40,40,38,36,34,32]
[2150,40,40,40,40,40,40,40,40,40,39,37,35,33]
[2200,40,40,40,40,40,40,40,40,40,40,38,36,34]
[2250,40,40,40,40,40,40,40,40,40,40,39,37,35]
[2300,40,40,40,40,40,40,40,40,40,40,40,38,36]
[2350,40,40,40,40,40,40,40,40,40,40,40,39,37]
[2400,40,40,40,40,40,40,40,40,40,40,40,40,38]
[2450,40,40,40,40,40,40,40,40,40,40,40,40,39]
[2500,40,40,40,40,40,40,40,40,40,40,40,40,40]

{"sheet":"HAWA-Concepta 50","index":11,"n_rows":13,"n_cols":14,"rows_kept":13,"cut":false,"hidden":true,"merged":[]}
["TH/TB",300,350,400,450,500,550,600,650,700,750,800,850,900]
[2301,50,50,50,50,50,50,50,50,50,50,50,50,48]
[2350,50,50,50,50,50,50,50,50,50,50,50,50,49]
[2400,50,50,50,50,50,50,50,50,50,50,50,50,50]
[2450,50,50,50,50,50,50,50,50,50,50,50,50,50]
[2500,50,50,50,50,50,50,50,50,50,50,50,50,50]
[2550,50,50,50,50,50,50,50,50,50,50,50,50,50]
[2600,50,50,50,50,50,50,50,50,50,50,50,50,50]
[2650,50,50,50,50,50,50,50,50,50,50,50,50,50]
[2700,50,50,50,50,50,50,50,50,50,50,50,50,50]
[2750,50,50,50,50,50,50,50,50,50,50,50,50,50]
[2800,50,50,50,50,50,50,50,50,50,50,50,50,50]
[2850,50,50,50,50,50,50,50,50,50,50,50,50,50]

{"sheet":"Bilder","index":12,"n_rows":7,"n_cols":2,"rows_kept":7,"cut":false,"hidden":true,"merged":[]}
[null,1]
[]
[]
["Concepta"]
[55]
[110]
["nische"]

{"sheet":"Text","index":13,"n_rows":82,"n_cols":6,"rows_kept":82,"cut":false,"hidden":true,"merged":[]}
[]
[null,"DE","EN","FR","IT","SP"]
[null,"Material",null,null,null,"Material "]
["T_Text1","Einbauhöhe (EH)","Installation height (EH)","Hauteur d'encastrement (EH)","Altezza di montaggio (EH)","Altura de montaje  (EH)"]
["T_Text2","Türbreite (TB)","Door width (TB)","Largeur de porte (TB)","Larghezza anta (TB)","Ancho del panel (TB)"]
["T_Text3","Türdicke","Door thickness","Epaisseur de porte","Spessore ante","Espesor de la puerta"]
["T_Text4","Spezifisches Gewicht","Specific weight","Poids spécifique","Peso specifico","Peso especifico"]
["T_Text5","Tür Gewicht","Door weight","Poids de porte ","Peso della porta","Peso puerta"]
["T_Text6",null,null,null,null,"Ingresar profundidad del mueble en mm"]
["T_Text7","Bitte \"M\" ändern","Please change \"M\"","Prière de changer de « M »","Si prega di cambiare \"M\"","Ingresar la medida de manecilla \"M\" "]
["T_Text8",null,null,null,null,"Si existe, ingresar la profundidad del mueble"]
["T_Text9","Schranktiefe ","Cabinet depth","Profondeur de l'armoire","Profondità armadio","Profundidad del mueble"]
["T_Text10","Beschlagstiefe (T)",null,"Profundeur de ferrure (T)","Profondita di montaggio (T)","Profundidad del herraje (T)"]
["T_Text11",null,"Door handle spacing (M)","Dimensions de la poignüèe de la porte (M)","Distanza maniglia (M)","Distancia tirador de la puerta (M)"]
["T_Text12","Türhöhe (TH)","Door height (TH)","Hateur de porte (TH)","Altezza anta (TH)","Altura del panel (TH)"]
["T_Text13","Einschubtiefe (E)","Slide-in depth ( E )","Profondeur d'escamotage ( E )","Profundità di innesto  ( E )","Profundidad para insertar ( E )"]
["T_Text14","Korpustiefe (KT)","Cabinet depth (KT)"," (KT)"," (KT)","Profundidad del mueble (KT)"]
["T_Text15","Artikel","Code","N°","N°","Codigo N°"]
["T_Text16","Stück","Pieces","Pièces","Pezza","Piezas"]
["T_Text17",null,"Mesures","Mesures","Misurazione","Medidas"]
["T_Text18","Spanplatte","chipboard","panneau d'agglomérés","pannelli truciolare","Tablero aglomerado"]
["T_Text19","MDF","MDF","MDF","Pannello MDF","Tablero de MDF "]
["T_Text20","Tischlerplatte","core-board","Panneau latté","listellare","Tablero de plywood "]
["T_Text21","Fichte / Tanne","spruce /  fir tree","Epicéa / Sapin","abete rosso / abete","Abeto"]
["T_Text22","Sonstiges (Bitte spezifisches Gewicht eingeben)","Other (please enter specific weight)","Autres (prière de saisir le poids spécifique)","Altro (indicare il peso specifico)","Otro (ingresar peso específico)"]
["T_Text23"]
["T_Text24","HAWA-Concepta 30 mit Führungsrolle oder HAWA-Concepta 40 mit Laufwerk","HAWA-Concepta 30 with guide roller or HAWA-Concepta 40 with trolley","HAWA-Concepta 30 avec galet de guidage ou HAWA-Concepta 40 avec chariot","HAWA-Concepta 30 con rullo di guida o HAWA-Concepta 40 con carrello","HAWA-Concepta 30 con rodillo, o, HAWA-Concepta 40 con cojinete"]
["T_Text25","\"M\" minimun  = Türdicke","\"M\" minimum  = door thickness","M minimum  = épaisseur de porte","M minimo  = spessore anta","Distancia \"M\" minima = espesor puerta"]
["T_Text26","Weiter","Next","Suite","avanti","Siguiente"]
["T_Text27","zurücksetzen","Reset","reculer","resettare","Reiniciar"]
["T_Text28","Zurück","Back ","Retour","indietro","Regresar"]
["T_Text29","Drucken","Print","imprimer","stampare","Imprimir"]
["T_Text30","Ja","yes","oui","sì","si"]
["T_Text31","Nein","no","non","no","no"]
["T_Text32","! ACHTUNG ! Die Verbindungsprofile und Ergänzungsteile müssen einzeln bestellt werden","! ATTENTION ! The connection profiles and supplementary parts must be ordered individually","! ATTENTION ! Les profils de raccordement et les accessoires doivent être commandés séparément","! ATTENZIONE ! I profili di collegamento e gli accessori devono essere ordinati singolarmente","! Atención! Perfiles de unión y piezas adicionales deben solicitarse por separado"]
["T_Text33","HAWA-Concepta 25, 1250-1850 mm, Garnitur für 1 Holztüre","HAWA-Concepta 25, 1250-1850 mm, set for 1 wooden door","HAWA-Concepta 25, 1250-1850 mm, garniture pour 1 porte en bois","HAWA-Concepta 25, 1250-1850 mm, corredo per 1 anta in legno","HAWA-Concepta 25, 1250-1850 mm, juego para 1 puerta"]
["T_Text34","HAWA-Concepta 30, 1851-2300 mm, Garnitur für 1 Holztüre","HAWA-Concepta 30, 1851-2300 mm, set for 1 wooden door","HAWA-Concepta 30, 1851-2300 mm, garniture pour 1 porte en bois","HAWA-Concepta 30, 1851-2300 mm, corredo per 1 anta in legno","HAWA-Concepta 30, 1851-2300 mm, juego para 1 puerta"]
["T_Text35","HAWA-Concepta 40, 1851-2500 mm, Garnitur für 1 Holztüre","HAWA-Concepta 40, 1851-2500 mm, set for 1 wooden door","HAWA-Concepta 40, 1851-2500 mm, garniture pour 1 porte en bois","HAWA-Concepta 40, 1851-2500 mm, corredo per 1 anta in legno","HAWA-Concepta 40, 1851-2500 mm, juego para 1 puerta"]
["T_Text36","HAWA-Concepta 50, 2301-2850 mm, Garnitur für 1 Holztüre","HAWA-Concepta 50, 2301-2850 mm, set for 1 wooden door","HAWA-Concepta 50, 2301-2850 mm, garniture pour 1 porte en bois","HAWA-Concepta 50, 2301-2850 mm, corredo per 1 anta in legno","HAWA-Concepta 50, 2301-2850 mm, juego para 1 puerta"]
["T_Text37","Ident. Nr","Ident. no.","N° d'ident.","N. ID","N°"]
["T_Text38","Stk.","Pieces","Pièces","pz.","Pieza"]
["T_Text39","Artikel","Article","Article","Articolo","Artículo"]
["T_Text40",null,"measurements",null,null,"Medidas"]
["T_Text41","Berechungstool HAWA-Concepta 25/30/40/50","Calculator HAWA-Concepta 25/30/40/50","Outil de calcul pour HAWA-Concepta 25/30/40/50","Strumento di calcolo HAWA-Concepta 25/30/40/50","Herramienta de cálculo HAWA-Concepta 25/30/40/50"]
["T_Text42","1) Grundmasse","1) Basic dimensions","1) Dimensions de base","1) Massa base","1) Dimensiones básicas"]
["T_Text43","2) Korpusmasse","2) Corp dimensions","2) Dimensions du corps","2) Massa corpo","2) Dimensiones del mueble"]
["T_Text44","Bitte eine Variante auswählen ","Please select a variant","Prière de sélectionner une variante","Scegliere una variante","Por favor seleccione una opción"]
["T_Text45","Zwischenluft Seite (Z3)","Side air gap (Z3)","Espace sur le côté (Z3)","Luce lato (Z3)","Holgura lateral (Z3)"]
["T_Text46","Zwischenluft oben (Z1)","Top air gap (Z1)","Espace en haut (Z1)","Luce sopra (Z1)","Holgura supeior (Z1)"]
["T_Text47","Zwischenluft unten (Z2)","Bottom air gap (Z2)","Espace en bas (Z2)","Luce sotto (Z2)","Holgura inferior (Z2)"]
["T_Text48","Türhöhe (TH)","Door height (TH)","Hauteur de porte (TH)","Altezza anta (TH)","Altura de puerta (TH)"]
["T_Text49","Fixes \"M\" wählen ","Select fixed \"M\"","Choisir une « M » fixe ","Selezionare \"M\" fissa ","Valor M fijo y KT variable"]
["T_Text50","Türüberstand (M)","Door overlap (M)","Saillie de porte (M)","Sporgenza anta (M)","Traslape de puerta (M)"]
["T_Text51","Beschlagtiefe (T)","Hardware depth (T)","Profondeur de ferrure (T)","Profondità ferramenta (T)","Profundidad del herraje (T)"]
["T_Text52","Einschubtiefe ( E)","Insertion depth ( E)","Profondeur d'escamotage (E)","Profondità di incasso ( E)","Profundidad para insertar ( E )"]
["T_Text53","minimale Korpustiefe (KT)","Select fixed \"KT\"","Choisir une « KT » fixe ","Selezionare \"KT\" fissa","Profundidad del mueble (KT)"]
["T_Text54","Korpustiefe (KT)","Cabinet depth (KT)","Profondeur de corps (KT)","Profondità corpo (KT)","Profundidad del mueble (KT)  "]
["T_Text55","Beschlagtiefe (T)","Hardware depth (T)","Profondeur de ferrure (T)","Profondità ferramenta (T)","Profundidad del herraje (T)"]
["T_Text56","Einschubtiefe ( E)","Insertion depth (E)","Profondeur d'escamotage (E)","Profondità di incasso ( E)","Profundidad para insertar ( E )"]
["T_Text57","Türüberstand (M) ","Door overlap (M) ","Saillie de porte (M)  ","Sporgenza anta (M) ","Traslape de puerta (M) "]
["T_Text58","Connector 55 mm: Nische für eine Dreh-Einschiebetüre.","Connector 55 mm: recess for one pivot/slide-in door.","Connector 55 mm : niche pour une porte pivotante et escamotable.","Connector 55 mm: nicchia per una anta roto-rientrante.","Connector 55 mm para una puerta pivotante e insertable"]
["T_Text59","Leichmetall farblos eloxiert, 1 Stück","Aluminum, plain anodized, 1 piece","métal léger, anodisé couleur argent, 1 pièce","Alluminio anodizzato incolore, 1 pezzo","aluminio anodizado plata, 1 pieza"]
["T_Text60","650 mm, Ident. Nr. 23221","650 mm, Ident. no. 23221","650 mm, n° d'ident. 23221","650 mm, N. ID 23221","650 mm, codigo Nr. 23221"]
["T_Text61","900 mm, Ident. Nr. 23222","900 mm, Ident. no. 23222","900 mm, n° d'ident. 23222","900 mm, N. ID 23222","900 mm, codigo Nr. 23222"]
["T_Text62","Connector 110 mm: Nische für Zwei Dreh-Einschiebetüre.","Connector 110 mm: recess for two pivot/slide-in doors","Connector 110 mm : niche pour deux portes pivotantes et escamotables.","Connector 110 mm: nicchia per due ante roto-rientranti","Connector 110 mm para dos puertas pivotantes e insertables"]
["T_Text63","Leichmetall farblos eloxiert, 1 Stück","Aluminum, plain anodized, 1 piece","métal léger, anodisé couleur argent, 1 pièce","Alluminio anodizzato incolore, 1 pezzo","aluminio anodizado plata, 1 pieza"]
["T_Text64","650 mm, Ident. Nr. 23223","650 mm, Ident. no. 23223","650 mm, n° d'ident. 23223","650 mm, N. ID 23223","650 mm, codigo. Nr. 23223"]
["T_Text65","900 mm, Ident. Nr. 23224","900 mm, Ident. no. 23224","900 mm, n° d'ident. 23224","900 mm, N. ID 23224","900 mm, codigo Nr. 23224"]
["T_Text66","26 mm, Ident. Nr. 23225","26 mm, Ident. no. 23225","26 mm, n° d'ident. 23225","26 mm, N. ID 23225","Connector: codigo Nr. 23225"]
["T_Text67","Zubehör separat bestellen","Order accessories separately","Commander les accessoires séparément","Ordinare gli accessori separatamente","Solicitar accesorios por separado"]
["T_Text68","Achtung: Bei einer Türdicke >30mm muss eine spezielle Detaillösung angewendet werden.","Attention: a special detailed solution is required for door thicknesses >30 mm.","Attention : en cas d'épaisseur de porte > 30 mm, une solution détaillée spécifique doit être utilisée.","Attenzione: con spessore anta >30mm utilizzare una soluzione specifica.","Atención:para una puerta con un espesor mayor a 30mm, se requiere una solución especial. "]
["T_Text69","Für Ihre angegebenen Werte sind zwei Gewichtsklassen möglich. Bitte wählen Sie die gewünschte Gewichtsklasse aus","There are two possible weight classes for your input. Please select the desired weight class.","Pour le valeur indiqué sont 2 variantes de poids possible. S.v.p choisissez votre classe du poids.","Due classi di peso sono possibili per i vostri valori specificati. Si prega di selezionare la classe di peso desiderato","De acuerdo a los datos ingresados, es posible elegir entre dos sistemas diferentes."]
["T_Text70","Mit zwei Führungsrollen für leichte Türen","With two guide rollers for lightweight doors","Avec 2 galets de guidage pour des portes légères","Con due rulli di guida per porte leggere","Sistema con dos rodillos para puertas ligeras"]
["T_Text71","Mit einer Laufrolle oben und einer Führungsrolle unten für eine erhöhte Laufruhe","With a two wheeled trolley above and a bottom guide for smoother running.","Avec galet double haut/bas pour un coulissements silencieux ","Con un rullo sopra e un rullo di guida in basso per un agevole esecuzione","Sistema con cojinetes y rodillo de guía inferior, para un movimiento silencioso"]
["T_Text72","TA","TA","TA","TA","TA"]
["T_Text73","Weiter","Next","Suite","Seguente","Siguiente"]
["T_Text74","Züruck","Back ","Retour ","Ritornare","Regresar"]
["T_Text75","T wird zu gross, bitte TH oder TB ändern, bis T:","T is to big, please change TH or TB","T est trop grand; changez TH svp","T e troppo grande; cambio TH per favore","T es muy grande, por favor cambie TH o TB"]
["T_Text76","TH = ( 1250-1850) mm; T <=650 mm","TH = ( 1250-1850) mm; T <=650 mm","TH = ( 1250-1850) mm; T <=650 mm","TH = ( 1250-1850) mm; T <=650 mm","TH = ( 1250-1850) mm; T <=650 mm"]
["T_Text77","TH = ( 1851-2850) mm; T <=900mm","TH = ( 1851-2850) mm; T <=900mm","TH = ( 1851-2850) mm; T <=900mm","TH = ( 1851-2850) mm; T <=900mm","TH = ( 1851-2850) mm; T <=900mm"]
["T_Text78","Gewicht ist zu hoch","Weight is too high","Le poids est trop élevé","Il peso è troppo alta","El peso es demasiado alto"]
["T_Text79","T wird zu gross, bitte TH oder TB ändern, bis T:"]

{"sheet":"Home","index":14,"n_rows":90,"n_cols":25,"rows_kept":90,"cut":false,"hidden":false,"merged":[[0,1,6,22]]}
[null,"  Berechungstool HAWA-Concepta 25/30/40/50"]
[]
[]
[]
[]
[]
[]
[null,null,null,null,null,null,null,null,null,null,null,null,null,null,null,null,null,null,null,null,null,null,null,null,"Vers_27.06.2017_Online"]
[]
[]
[]
[]
[]
[]
[]
[]
[]
[]
[]
[]
[]
[]
[]
[]
[]
[]
[]
[]
[]
[]
[]
[]
[]
[]
[]
[]
[]
[]
[]
[]
[]
[]
[]
[]
[]
[]
[]
[]
[]
[]
[]
[]
[]
[]
[]
[]
[]
[]
[]
[]
[]
[]
[]
[]
[]
[]
[]
[]
[]
[]
[]
[]
[]
[]
[]
[]
[]
[]
[]
[]
[]
[]
[]
[]
[]
[]
[]
[]
[]
[{"$f":"VLOOKUP(\"T_Text68\", Texte,Languaje, FALSE)","v":"Achtung: Bei einer Türdicke >30mm muss eine spezielle Detaillösung angewendet werden."}]